bitfinex-derivatives/quotes_BTCF0:USTF0_20241103
["timestamp","ask_amount","ask_price","bid_price","bid_amount"]
[1730645791429,0.073832,67738.0,67737.0,0.3608]
[1730645791832,0.07556259,67738.0,67737.0,0.3608]
[1730645792021,0.00173059,67738.0,67737.0,0.434633]
[1730645792727,0.00273059,67738.0,67737.0,0.075833]
[1730645793037,0.07656259,67738.0,67737.0,0.002]
[1730645793425,0.07756259,67738.0,67737.0,0.004]
[1730645793929,0.07756259,67738.0,67737.0,0.077833]
[1730645794130,0.07656259,67738.0,67737.0,0.077833]
[1730645794332,0.07656259,67738.0,67737.0,0.004]
[1730645794836,0.07656259,67738.0,67737.0,1.10316482]
[1730645794837,0.00273059,67738.0,67737.0,1.10316482]
[1730645795729,0.00273059,67738.0,67737.0,0.70442912]
[1730645795938,0.00173059,67738.0,67737.0,1.14530912]
[1730645796137,0.00273059,67738.0,67737.0,0.70442912]
[1730645796526,0.00273059,67738.0,67737.0,0.70342912]
[1730645796741,0.00173059,67738.0,67737.0,0.70142912]
[1730645796926,0.00273059,67738.0,67737.0,0.70342912]
[1730645797126,0.00273059,67738.0,67737.0,0.70242912]
[1730645797328,0.00373059,67738.0,67737.0,0.66028482]
[1730645798633,0.00273059,67738.0,67737.0,1.10116482]
[1730645798835,0.00373059,67738.0,67737.0,1.10316482]
[1730645799139,0.00373059,67738.0,67737.0,1.14727877]
[1730645799331,0.00373059,67738.0,67737.0,1.10316482]
[1730645800031,0.00373059,67738.0,67737.0,2.60316482]
[1730645800232,0.00373059,67738.0,67737.0,2.64496482]
[1730645801335,0.00373059,67738.0,67737.0,0.7191107]
[1730645801644,0.07756259,67738.0,67737.0,0.004]
[1730645802836,0.07656259,67738.0,67737.0,0.004]
[1730645803334,0.43736259,67738.0,67737.0,0.002]
[1730645803546,0.43936259,67738.0,67737.0,0.002]
[1730645803734,0.073839,67731.0,67730.0,0.36301457]
[1730645804842,0.07556959,67731.0,67730.0,0.36301457]
[1730645805236,0.00173059,67731.0,67730.0,1.40031083]
[1730645805438,0.073794,67773.0,67730.0,1.40031083]
[1730645805439,0.3608,67765.0,67730.0,1.60505455]
[1730645805640,0.3608,67765.0,67755.0,0.3608]
[1730645805641,0.07381,67758.0,67755.0,0.3608]
[1730645806036,0.07381,67758.0,67756.0,0.073812]
[1730645806836,0.07881,67758.0,67755.0,0.3608]
[1730645807038,0.07881,67758.0,67757.0,0.073811]
[1730645807547,0.008,67758.0,67757.0,0.073811]
[1730645807746,0.00973643,67758.0,67757.0,0.073811]
[1730645808248,0.00973643,67758.0,67757.0,0.11794191]
[1730645808435,0.00473643,67758.0,67757.0,0.11794191]
[1730645808638,0.01073643,67758.0,67757.0,0.11794191]
[1730645808936,0.00773643,67758.0,67757.0,0.6554833]
[1730645809134,0.01073643,67758.0,67757.0,0.6554833]
[1730645809340,0.00473643,67758.0,67757.0,0.6554833]
[1730645809536,0.01173643,67758.0,67757.0,0.6554833]
[1730645811044,0.01173643,67758.0,67757.0,1.0982433]
[1730645811741,0.01173643,67758.0,67757.0,0.6996089]
[1730645812144,0.01173643,67758.0,67757.0,0.6554833]
[1730645812855,0.01173643,67758.0,67757.0,1.0982433]
[1730645813351,0.01173643,67758.0,67757.0,1.14234746]
[1730645813759,0.3608,67779.0,67757.0,1.0982433]
[1730645814060,0.00128,67785.0,67778.0,0.3608]
[1730645814351,0.434573,67792.0,67791.0,0.073774]
[1730645815347,0.00221357,67798.0,67797.0,0.073768]
[1730645816051,0.00221357,67798.0,67797.0,0.434568]
[1730645816249,0.00221357,67798.0,67797.0,0.65457298]
[1730645816453,0.1,67800.0,67799.0,0.073765]
[1730645816963,0.1,67800.0,67799.0,0.29376998]
[1730645817349,0.01855096,67817.0,67799.0,0.22000498]
[1730645817554,0.073746,67818.0,67814.0,0.073749]
[1730645817959,0.073746,67818.0,67813.0,0.3608]
[1730645818144,0.073746,67818.0,67815.0,0.073748]
[1730645818457,0.3791894,67829.0,67813.0,0.3608]
[1730645818645,0.3791894,67829.0,67804.0,0.3608]
[1730645818646,0.073753,67811.0,67809.0,0.073754]
[1730645818846,0.012,67818.0,67814.0,0.001]
[1730645819157,0.073748,67816.0,67814.0,0.074749]
[1730645819459,0.073748,67816.0,67815.0,0.001]
[1730645819843,0.012,67818.0,67817.0,0.073746]
[1730645820160,0.012,67818.0,67815.0,0.001]
[1730645820348,0.073747,67816.0,67815.0,0.001]
[1730645820547,0.00179506,67817.0,67816.0,0.073747]
[1730645820956,0.00179506,67817.0,67816.0,0.29627352]
[1730645821546,0.00179506,67817.0,67816.0,1.09943352]
[1730645822051,0.01579506,67817.0,67816.0,0.65807352]
[1730645822846,0.02979506,67817.0,67816.0,0.3618]
[1730645823260,0.10354106,67817.0,67816.0,0.3618]
[1730645823858,0.10354106,67817.0,67810.0,0.3608]
[1730645823859,0.073747,67816.0,67810.0,0.3608]
[1730645824066,0.02679506,67817.0,67811.0,0.073752]
[1730645824360,0.02679506,67817.0,67803.0,0.07376]
[1730645824361,0.073748,67815.0,67803.0,0.07376]
[1730645824565,0.00179506,67814.0,67803.0,0.07376]
[1730645824754,0.00179506,67814.0,67803.0,0.29437162]
[1730645824755,0.07375,67813.0,67803.0,0.29437162]
[1730645824945,0.3608,67804.0,67796.0,0.073768]
[1730645825152,0.3608,67804.0,67795.0,0.3608]
[1730645825153,0.073769,67796.0,67795.0,0.3608]
[1730645825353,0.073777,67788.0,67786.0,0.073779]
[1730645825655,0.0382,67803.0,67785.0,0.0022123]
[1730645825656,0.073779,67786.0,67785.0,0.0022123]
[1730645825958,0.00179506,67787.0,67786.0,0.073779]
[1730645826261,0.00179506,67787.0,67786.0,0.29537054]
[1730645826755,0.00179506,67787.0,67786.0,0.073779]
[1730645827055,0.00179506,67787.0,67786.0,0.29537054]
[1730645827549,0.00179506,67787.0,67786.0,0.30337054]
[1730645828047,0.00279506,67787.0,67786.0,0.29837054]
[1730645828247,0.00279506,67787.0,67786.0,0.30637054]
[1730645828248,0.00379506,67787.0,67786.0,0.30637054]
[1730645829354,0.00279506,67787.0,67786.0,0.29837054]
[1730645829558,0.00379506,67787.0,67786.0,0.30137054]
[1730645829752,0.00379506,67787.0,67786.0,0.30437054]
[1730645830752,0.00379506,67787.0,67786.0,0.23059154]
[1730645831062,0.00379506,67787.0,67786.0,0.01]
[1730645831063,0.07905566,67787.0,67786.0,0.01]
[1730645831556,0.07905566,67787.0,67786.0,0.009]
[1730645832153,0.00427766,67787.0,67786.0,0.076779]
[1730645832353,0.00427766,67787.0,67786.0,0.29799856]
[1730645832755,0.00327766,67787.0,67786.0,0.29499856]
[1730645833063,0.07805566,67787.0,67786.0,0.003]
[1730645833657,0.07705566,67787.0,67785.0,0.0022123]
[1730645833857,0.08205566,67787.0,67786.0,0.003]
[1730645834161,0.08205566,67787.0,67786.0,0.076779]
[1730645834550,0.07705566,67787.0,67786.0,0.006]
[1730645834752,0.07805566,67787.0,67786.0,0.006]
[1730645835268,0.074778,67787.0,67786.0,0.006]
[1730645835572,0.001,67787.0,67786.0,0.29979634]
[1730645835859,0.001,67787.0,67786.0,0.29779634]
[1730645836067,0.001,67787.0,67786.0,0.22401734]
[1730645836367,0.001,67787.0,67786.0,0.29779634]
[1730645836660,0.074778,67787.0,67786.0,0.004]
[1730645837164,0.073778,67787.0,67786.0,0.004]
[1730645837365,0.073778,67787.0,67786.0,0.006]
[1730645837962,0.0393,67795.0,67786.0,0.004]
[1730645837963,0.073771,67794.0,67786.0,0.004]
[1730645838165,0.073778,67787.0,67786.0,0.004]
[1730645838565,0.073778,67787.0,67786.0,0.29946543]
[1730645839484,0.073779,67786.0,67785.0,0.0022123]
[1730645840071,0.0393,67795.0,67785.0,0.0022123]
[1730645840370,0.0393,67795.0,67789.0,0.073776]
[1730645840371,0.073775,67790.0,67789.0,0.073776]
[1730645840761,0.073773,67793.0,67786.0,0.003]
[1730645841066,0.073773,67793.0,67791.0,0.073773]
[1730645841569,0.0403,67795.0,67790.0,0.3608]
[1730645841863,0.073774,67791.0,67790.0,0.3608]
[1730645844369,0.077774,67791.0,67790.0,0.435575]
[1730645844870,0.079774,67791.0,67790.0,0.436575]
[1730645845066,0.079774,67791.0,67790.0,0.438575]
[1730645845971,0.079774,67791.0,67790.0,0.3648]
[1730645846668,0.079774,67791.0,67790.0,0.3608]
[1730645846669,0.073774,67791.0,67790.0,0.3608]
[1730645846864,0.077774,67791.0,67790.0,0.3608]
[1730645847070,0.45386637,67801.0,67800.0,0.073764]
[1730645847071,0.00140001,67801.0,67800.0,0.073764]
[1730645847371,0.073763,67802.0,67801.0,0.073763]
[1730645847668,0.073763,67802.0,67801.0,0.2941825]
[1730645847871,0.073763,67802.0,67801.0,0.2204195]
[1730645848068,0.073763,67802.0,67800.0,0.37887053]
[1730645848270,0.073763,67801.0,67800.0,0.37887053]
[1730645848471,0.080763,67801.0,67800.0,0.37887053]
[1730645848666,0.122063,67801.0,67800.0,0.3608]
[1730645849164,0.0483,67801.0,67792.0,0.073773]
[1730645849365,0.073772,67793.0,67792.0,0.073773]
[1730645849971,0.04386186,67801.0,67790.0,0.3608]
[1730645850165,0.073774,67791.0,67790.0,0.434575]
[1730645850365,0.07633586,67791.0,67790.0,0.434575]
[1730645850863,0.07633586,67791.0,67790.0,0.3608]
[1730645851063,0.07633586,67791.0,67785.0,0.0022123]
[1730645851372,0.07633586,67791.0,67776.0,0.3608]
[1730645851373,0.073789,67777.0,67776.0,0.3608]
[1730645852373,0.07635086,67777.0,67776.0,0.3608]
[1730645853271,0.07635086,67777.0,67770.0,0.3608]
[1730645853571,0.073796,67771.0,67770.0,0.3608]
[1730645854377,0.07635786,67771.0,67770.0,0.3608]
[1730645854769,0.07735786,67771.0,67770.0,0.3718]
[1730645856075,0.07835786,67771.0,67770.0,0.37576]
[1730645856574,0.07835786,67771.0,67770.0,0.43467005]
[1730645856781,0.07835786,67771.0,67770.0,0.37576]
[1730645857279,0.07835786,67771.0,67770.0,0.41992853]
[1730645857775,0.07835786,67771.0,67770.0,0.37576]
[1730645858772,0.07835786,67771.0,67770.0,0.449557]
[1730645859865,0.07835786,67771.0,67770.0,0.50846705]
[1730645860273,0.07835786,67771.0,67770.0,0.37576]
[1730645862286,0.07835786,67771.0,67770.0,0.088797]
[1730645862470,0.07835786,67771.0,67770.0,0.13294242]
[1730645863580,0.07835786,67771.0,67770.0,0.088797]
[1730645864679,0.00456186,67771.0,67770.0,0.088797]
[1730645864875,0.07835786,67771.0,67770.0,0.088797]
[1730645866383,0.07835786,67771.0,67770.0,0.015]
[1730645867182,0.07835786,67771.0,67769.0,0.04412097]
[1730645867183,0.44724186,67771.0,67769.0,0.04412097]
[1730645867382,0.44724186,67771.0,67762.0,0.00221341]
[1730645867383,0.0738,67767.0,67766.0,0.04412097]
[1730645867681,0.0738,67767.0,67762.0,0.00221341]
[1730645867682,0.07635886,67770.0,67764.0,0.04412097]
[1730645867869,0.07635886,67770.0,67762.0,0.00221341]
[1730645867870,0.073798,67769.0,67766.0,0.04412097]
[1730645868074,0.073802,67765.0,67764.0,0.04412097]
[1730645868274,0.073803,67764.0,67763.0,0.04412097]
[1730645868486,0.07636486,67764.0,67763.0,0.04412097]
[1730645868682,0.07636486,67764.0,67763.0,0.11792597]
[1730645868878,0.07636486,67764.0,67763.0,0.073805]
[1730645869580,0.07636486,67764.0,67763.0,0.13271505]
[1730645869969,0.07636486,67764.0,67763.0,0.13371505]
[1730645869970,0.07736486,67764.0,67763.0,0.13371505]
[1730645870176,0.00356186,67764.0,67763.0,0.2948488]
[1730645870576,0.00456186,67764.0,67763.0,0.2958488]
[1730645871674,0.00456186,67764.0,67763.0,0.31407219]
[1730645872083,0.00456186,67764.0,67763.0,0.2958488]
[1730645873589,0.00456186,67764.0,67763.0,0.33996538]
[1730645873792,0.00456186,67764.0,67763.0,0.33996557]
[1730645873980,0.07836486,67764.0,67763.0,0.075805]
[1730645874177,0.07836486,67764.0,67763.0,0.002]
[1730645876192,0.07836486,67764.0,67762.0,0.00221341]
[1730645876485,0.07836486,67764.0,67750.0,0.04411677]
[1730645876486,0.88548186,67763.0,67750.0,0.04411677]
[1730645876680,0.073819,67750.0,67747.0,0.04411677]
[1730645876888,0.073819,67750.0,67746.0,0.04411677]
[1730645877591,0.07638086,67750.0,67743.0,0.11794277]
[1730645877792,0.073825,67744.0,67743.0,0.073826]
[1730645878675,0.07638686,67744.0,67743.0,0.073826]
[1730645879780,0.07738686,67744.0,67743.0,0.073826]
[1730645879984,0.07838686,67744.0,67743.0,0.073826]
[1730645880475,0.07738686,67744.0,67743.0,0.073826]
[1730645880992,0.07738686,67744.0,67741.0,0.07366508]
[1730645880993,0.073827,67742.0,67741.0,0.07366508]
[1730645881182,0.00356186,67744.0,67740.0,0.073829]
[1730645881183,0.00356186,67744.0,67740.0,0.07366508]
[1730645881492,0.00256186,67744.0,67743.0,0.073826]
[1730645881681,0.00256186,67744.0,67743.0,0.13269338]
[1730645882087,0.07638686,67744.0,67743.0,0.13269338]
[1730645882290,0.07638686,67744.0,67743.0,0.073826]
[1730645882479,0.073826,67743.0,67742.0,0.05884737]
[1730645882787,0.073826,67743.0,67741.0,0.05884737]
[1730645882788,0.073827,67742.0,67741.0,0.05884737]
[1730645882986,0.073827,67742.0,67739.0,0.04413744]
[1730645883189,0.07383,67740.0,67739.0,0.04413744]
[1730645883379,0.073831,67739.0,67738.0,0.04635173]
[1730645883581,0.073831,67739.0,67738.0,0.00221429]
[1730645884512,0.073831,67739.0,67724.0,0.44919809]
[1730645884513,0.516711,67739.0,67733.0,0.04413744]
[1730645884782,0.516711,67739.0,67725.0,0.04410662]
[1730645884783,0.073845,67726.0,67725.0,0.04410662]
[1730645885089,0.073845,67726.0,67724.0,0.40490662]
[1730645885401,0.073846,67725.0,67724.0,0.3608]
[1730645885581,0.073846,67725.0,67724.0,0.434647]
[1730645885786,0.001,67739.0,67738.0,0.073832]
[1730645886091,0.3608,67759.0,67747.0,0.073822]
[1730645886293,0.073815,67754.0,67747.0,0.434622]
[1730645886494,0.3608,67759.0,67747.0,0.7008916]
[1730645886683,0.073819,67750.0,67747.0,0.434622]
[1730645886888,0.07382,67749.0,67747.0,0.434622]
[1730645887192,0.07603637,67748.0,67747.0,0.3608]
[1730645887392,0.15253637,67748.0,67747.0,0.3608]
[1730645887694,0.07871537,67748.0,67741.0,0.073828]
[1730645887992,0.07871537,67748.0,67739.0,0.073831]
[1730645887993,0.038,67747.0,67739.0,0.073831]
[1730645888192,0.073827,67743.0,67740.0,0.073829]
[1730645888392,0.038,67747.0,67740.0,0.073829]
[1730645888593,0.073831,67740.0,67738.0,0.3608]
[1730645888794,0.073823,67746.0,67738.0,0.3608]
[1730645888991,0.073831,67740.0,67738.0,0.3608]
[1730645889292,0.073831,67740.0,67737.0,0.0440562]
[1730645889591,0.073831,67740.0,67738.0,0.073832]
[1730645889790,0.001,67740.0,67736.0,0.0440562]
[1730645889994,0.073835,67735.0,67732.0,0.0440562]
[1730645890187,0.073835,67735.0,67734.0,0.073836]
[1730645891094,0.002,67740.0,67731.0,0.3608]
[1730645891391,0.001,67740.0,67739.0,0.073831]
[1730645891597,0.002,67740.0,67739.0,0.073831]
[1730645891789,0.002,67740.0,67739.0,0.1178775]
[1730645891995,0.073825,67744.0,67739.0,0.1178775]
[1730645892190,0.073825,67744.0,67742.0,0.073827]
[1730645892892,0.073826,67743.0,67742.0,0.073827]
[1730645893397,0.038,67747.0,67743.0,0.073825]
[1730645893398,0.073823,67746.0,67743.0,0.073825]
[1730645893794,0.073824,67745.0,67743.0,0.073825]
[1730645895002,0.073825,67744.0,67743.0,0.073825]
[1730645895196,0.073826,67743.0,67740.0,0.073829]
[1730645895797,0.038,67747.0,67737.0,0.3608]
[1730645896000,0.05617974,67747.0,67737.0,0.434633]
[1730645896197,0.07383,67740.0,67737.0,0.434633]
[1730645896496,0.073836,67734.0,67733.0,0.0440465]
[1730645898100,0.074836,67734.0,67733.0,0.0440065]
[1730645898592,0.075836,67734.0,67733.0,0.0440065]
[1730645899103,0.075836,67734.0,67731.0,0.3608]
[1730645899404,0.075836,67734.0,67733.0,0.073837]
[1730645899801,0.002,67734.0,67733.0,0.073837]
[1730645900307,0.002,67734.0,67733.0,0.29579132]
[1730645903194,0.0004,67734.0,67733.0,0.29579132]
[1730645903897,0.00221537,67748.0,67733.0,0.96487432]
[1730645904099,0.00221537,67748.0,67747.0,0.434622]
[1730645905002,0.00321537,67748.0,67747.0,0.434622]
[1730645905202,0.00421537,67748.0,67747.0,0.434622]
[1730645905703,0.00721537,67748.0,67747.0,0.434622]
[1730645906700,0.004,67748.0,67747.0,0.435622]
[1730645907602,0.004,67748.0,67747.0,0.65663301]
[1730645913410,0.0051527,67748.0,67747.0,0.65663301]
[1730645915103,0.0789737,67748.0,67747.0,0.001]
[1730645916614,0.0789737,67748.0,67747.0,0.00096]
[1730645916910,0.54017135,67748.0,67737.0,0.05889786]
[1730645917098,0.3608,67744.0,67736.0,0.13273186]
[1730645917297,0.3608,67744.0,67732.0,0.45273416]
[1730645917298,0.0011527,67740.0,67735.0,0.05894223]
[1730645917506,0.073836,67734.0,67733.0,0.13277923]
[1730645917811,0.073836,67734.0,67733.0,0.073837]
[1730645918315,0.0749887,67734.0,67733.0,0.073837]
[1730645919209,0.0759887,67734.0,67733.0,0.074837]
[1730645920111,0.0769887,67734.0,67733.0,0.074837]
[1730645920308,0.0031527,67734.0,67733.0,0.074837]
[1730645921804,0.0769887,67734.0,67733.0,0.13375603]
[1730645922115,0.0769887,67734.0,67733.0,0.074837]
[1730645923110,0.0769887,67734.0,67733.0,0.13375603]
[1730645923712,0.0031527,67734.0,67733.0,0.13375603]
[1730645924019,0.0031527,67734.0,67733.0,0.2965972]
[1730645924706,0.0031527,67734.0,67733.0,0.35550588]
[1730645925615,0.0031527,67734.0,67733.0,0.15217023]
[1730645925813,0.0769887,67734.0,67733.0,0.09326155]
[1730645926709,0.0769887,67734.0,67733.0,0.074837]
[1730645927307,0.0769887,67734.0,67733.0,0.001]
[1730645929416,0.09512123,67734.0,67733.0,0.001]
[1730645929727,0.07384,67730.0,67729.0,0.00221459]
[1730645930308,0.0749927,67730.0,67729.0,0.00221459]
[1730645930815,0.0759927,67730.0,67729.0,0.00321459]
[1730645931520,0.0769927,67730.0,67729.0,0.00321459]
[1730645931717,0.0031527,67730.0,67729.0,0.074842]
[1730645931921,0.0031527,67730.0,67729.0,0.13375068]
[1730645932118,0.0031527,67730.0,67729.0,0.074842]
[1730645933206,0.0031527,67730.0,67729.0,0.29484326]
[1730645934226,0.0031527,67730.0,67729.0,0.45419859]
[1730645934607,0.0031527,67730.0,67729.0,0.82352714]
[1730645936310,0.0031527,67730.0,67729.0,0.82299645]
[1730645938314,0.0031527,67730.0,67729.0,0.92453476]
[1730645938714,0.0031527,67730.0,67729.0,1.28533476]
[1730645939218,0.0031527,67730.0,67729.0,1.18379645]
[1730645939820,0.0031527,67730.0,67729.0,1.27213494]
[1730645940620,0.0367,67742.0,67741.0,0.073828]
[1730645940817,0.0367,67742.0,67741.0,0.434628]
[1730645941312,0.0374,67753.0,67741.0,0.65552198]
[1730645941518,0.0354,67752.0,67747.0,0.434622]
[1730645941828,0.0354,67752.0,67747.0,0.65492832]
[1730645942328,0.0354,67752.0,67751.0,0.073818]
[1730645942724,0.0354,67752.0,67751.0,0.35425892]
[1730645943029,0.0354,67752.0,67751.0,0.29534994]
[1730645943231,0.0354,67752.0,67751.0,0.35425892]
[1730645943425,0.0353,67762.0,67751.0,0.28044092]
[1730645943728,0.0353,67762.0,67758.0,0.3608]
[1730645944232,0.0353,67762.0,67761.0,0.073807]
[1730645944432,0.36301429,67770.0,67758.0,0.3608]
[1730645944732,0.011,67762.0,67761.0,0.073807]
[1730645945315,0.008,67762.0,67761.0,0.073807]
[1730645945630,0.021,67762.0,67761.0,0.073807]
[1730645946224,0.013,67762.0,67761.0,0.073807]
[1730645946428,0.027,67762.0,67761.0,0.073807]
[1730645947032,0.027,67762.0,67761.0,0.2962286]
[1730645948122,0.00221429,67770.0,67761.0,0.2962286]
[1730645948123,0.00221429,67770.0,67769.0,0.073798]
[1730645948330,0.00221429,67770.0,67769.0,0.552598]
[1730645948626,0.00221429,67770.0,67769.0,0.83408067]
[1730645949027,0.00221429,67770.0,67769.0,1.27676067]
[1730645949229,0.0382,67782.0,67781.0,0.073785]
[1730645950225,0.0382,67782.0,67776.0,0.3608]
[1730645950226,0.111985,67782.0,67776.0,0.43459]
[1730645950534,0.111985,67782.0,67777.0,0.22267559]
[1730645950535,0.0382,67782.0,67777.0,0.22267559]
[1730645950748,0.0382,67782.0,67781.0,0.001]
[1730645951618,0.0392,67782.0,67781.0,0.001]
[1730645952317,0.0392,67782.0,67781.0,0.006]
[1730645953034,0.0392,67782.0,67781.0,0.008]
[1730645954337,0.0392,67782.0,67781.0,0.00796]
[1730645954545,0.0382,67782.0,67781.0,0.009]
[1730645954835,0.0382,67782.0,67781.0,0.082785]
[1730645955222,0.0382,67782.0,67781.0,0.075785]
[1730645955425,0.0382,67782.0,67781.0,0.082785]
[1730645956727,0.0382,67782.0,67781.0,0.075785]
[1730645957037,0.0392,67782.0,67781.0,0.081785]
[1730645957631,0.0392,67782.0,67781.0,0.008]
[1730645958131,0.0392,67782.0,67781.0,0.081785]
[1730645958522,0.0392,67782.0,67781.0,0.079785]
[1730645958723,0.0392,67782.0,67781.0,0.081785]
[1730645959934,0.0392,67782.0,67781.0,0.079785]
[1730645960134,0.0392,67782.0,67781.0,0.081785]
[1730645961229,0.001,67782.0,67781.0,0.30429138]
[1730645961429,0.0349,67790.0,67789.0,0.073776]
[1730645961624,0.0349,67790.0,67789.0,0.434576]
[1730645962739,0.0399,67790.0,67789.0,0.434576]
[1730645963838,0.0409,67790.0,67789.0,0.65623901]
[1730645965537,0.0409,67790.0,67789.0,0.67428272]
[1730645966333,0.006,67790.0,67789.0,0.67428272]
[1730645967125,0.006,67790.0,67789.0,1.11684272]
[1730645970832,0.006,67790.0,67789.0,0.79208272]
[1730645971539,0.006,67790.0,67789.0,1.23464272]
[1730645972531,0.006,67790.0,67789.0,0.67428272]
[1730645972735,0.006,67790.0,67789.0,0.79208272]
[1730645973642,0.006,67790.0,67789.0,0.67428272]
[1730645973838,0.006,67790.0,67789.0,1.11684272]
[1730645974339,0.006,67790.0,67789.0,1.23464272]
[1730645974529,0.006,67790.0,67789.0,0.79208272]
[1730645975947,0.006,67790.0,67789.0,0.67428272]
[1730645977053,0.006,67790.0,67789.0,1.11684272]
[1730645978428,0.006,67790.0,67789.0,0.67428272]
[1730645984145,0.006,67790.0,67789.0,0.58246301]
[1730645984340,0.079775,67790.0,67789.0,0.58246301]
[1730645985138,0.006,67790.0,67785.0,0.05868806]
[1730645985340,0.073779,67786.0,67785.0,0.07725782]
[1730645986334,0.073779,67786.0,67785.0,0.38136976]
[1730645987037,0.073779,67786.0,67785.0,0.37936976]
[1730645987240,0.073779,67786.0,67785.0,0.38136976]
[1730645987445,0.075779,67786.0,67785.0,0.38136976]
[1730645988449,0.075779,67786.0,67785.0,0.45515076]
[1730645988662,0.002,67786.0,67785.0,0.45515076]
[1730645988947,0.003,67786.0,67785.0,0.45515076]
[1730645989538,0.003,67786.0,67785.0,0.45315076]
[1730645989745,0.003,67786.0,67785.0,0.45415076]
[1730645989951,0.003,67786.0,67785.0,0.67556197]
[1730645990640,0.003,67786.0,67785.0,0.74919281]
[1730645991148,0.003,67786.0,67785.0,0.76132394]
[1730645991444,0.003,67786.0,67785.0,0.83499849]
[1730645992744,0.003,67786.0,67785.0,0.74923652]
[1730645993047,0.0376,67798.0,67797.0,0.073768]
[1730645993549,0.0376,67798.0,67797.0,0.2957462]
[1730645994741,0.0476,67798.0,67797.0,1.7967462]
[1730645994947,0.0476,67798.0,67797.0,0.2967462]
[1730645995254,0.0476,67798.0,67797.0,0.37142165]
[1730645995448,0.0576,67798.0,67797.0,1.7977462]
[1730645995758,0.0576,67798.0,67797.0,2.07410565]
[1730645995940,0.0576,67798.0,67797.0,2.07407804]
[1730645996146,0.0476,67798.0,67797.0,2.07307804]
[1730645996352,0.0566,67798.0,67797.0,1.98907404]
[1730645996942,0.0566,67798.0,67797.0,2.00039537]
[1730645998646,0.0566,67798.0,67797.0,2.01831244]
[1730645999458,0.0566,67798.0,67797.0,0.51831244]
[1730645999750,0.0566,67798.0,67797.0,0.40072894]
[1730646000058,0.0566,67798.0,67797.0,0.51840894]
[1730646000256,0.019,67798.0,67797.0,0.51840894]
[1730646001048,0.019,67798.0,67797.0,0.40072894]
[1730646001248,0.019,67798.0,67797.0,0.47432361]
[1730646001552,0.019,67798.0,67797.0,0.474326]
[1730646001751,0.092766,67798.0,67797.0,0.002]
[1730646001947,0.019,67798.0,67795.0,0.01810481]
[1730646002145,0.019,67798.0,67797.0,0.22065482]
[1730646002352,0.019,67798.0,67797.0,0.3608]
[1730646002556,0.092766,67798.0,67797.0,0.3608]
[1730646002761,0.535246,67798.0,67797.0,0.28062702]
[1730646003057,0.535246,67798.0,67793.0,0.29551506]
[1730646003058,0.45148,67798.0,67795.0,0.05888296]
[1730646003258,0.073769,67796.0,67795.0,0.06088865]
[1730646003646,0.073769,67796.0,67795.0,0.001]
[1730646004056,0.073771,67795.0,67792.0,0.05888865]
[1730646004357,0.0332,67794.0,67793.0,0.073772]
[1730646004570,0.0332,67794.0,67793.0,0.13266065]
[1730646004953,0.106971,67794.0,67793.0,0.05888865]
[1730646005149,0.073773,67792.0,67791.0,0.05888865]
[1730646005653,0.0332,67794.0,67789.0,0.05888865]
[1730646005654,0.073772,67793.0,67789.0,0.05888865]
[1730646005854,0.0332,67794.0,67788.0,0.00608865]
[1730646005855,0.0674,67791.0,67788.0,0.00608865]
[1730646006053,0.073779,67786.0,67785.0,0.07378]
[1730646006863,0.073779,67786.0,67785.0,0.09200441]
[1730646007753,0.073779,67786.0,67785.0,0.09200541]
[1730646007957,0.073779,67786.0,67785.0,0.073781]
[1730646008355,0.076779,67786.0,67785.0,0.073781]
[1730646009052,0.073783,67783.0,67782.0,0.01801521]
[1730646009252,0.073783,67783.0,67782.0,0.073784]
[1730646009456,0.073785,67781.0,67780.0,0.3608]
[1730646009851,0.073785,67781.0,67780.0,0.45303063]
[1730646011054,0.073781,67785.0,67780.0,0.37924463]
[1730646011253,0.073781,67785.0,67784.0,0.073782]
[1730646011454,0.073785,67782.0,67780.0,0.45303063]
[1730646011663,0.073785,67782.0,67781.0,0.073785]
[1730646013065,0.3608,67790.0,67780.0,0.38324463]
[1730646013271,0.3608,67790.0,67784.0,0.073781]
[1730646013470,0.073781,67785.0,67784.0,0.073781]
[1730646013855,0.3608,67790.0,67781.0,0.005]
[1730646014172,0.018145,67796.0,67787.0,0.3608]
[1730646014555,0.0661,67802.0,67788.0,0.22136411]
[1730646014867,0.0661,67802.0,67797.0,0.073768]
[1730646015466,0.073765,67799.0,67797.0,0.073768]
[1730646015871,0.0661,67802.0,67793.0,0.073772]
[1730646016061,0.07377,67796.0,67787.0,0.3608]
[1730646016365,0.07377,67796.0,67794.0,0.29486174]
[1730646016672,0.07377,67796.0,67795.0,0.07377]
[1730646016883,0.07377,67796.0,67795.0,0.29588486]
[1730646017164,0.07377,67796.0,67787.0,0.37895601]
[1730646017165,0.073768,67797.0,67793.0,0.001]
[1730646017370,0.3668,67798.0,67793.0,0.001]
[1730646017371,0.003,67796.0,67793.0,0.001]
[1730646017756,0.073771,67794.0,67793.0,0.001]
[1730646018369,0.073771,67794.0,67793.0,0.074772]
[1730646018666,0.073773,67792.0,67791.0,0.04412906]
[1730646018870,0.073773,67792.0,67787.0,0.37895601]
[1730646019072,0.073773,67792.0,67791.0,0.073774]
[1730646019976,0.015,67794.0,67787.0,0.37895601]
[1730646020178,0.006,67794.0,67793.0,0.073772]
[1730646020473,0.3608,67798.0,67797.0,0.073768]
[1730646021170,0.3608,67798.0,67797.0,0.29568855]
[1730646021372,0.0318,67802.0,67801.0,0.073763]
[1730646021567,0.073761,67803.0,67801.0,0.073763]
[1730646021961,0.073761,67803.0,67794.0,0.0667]
[1730646022161,0.073757,67807.0,67804.0,0.07376]
[1730646022366,0.073759,67806.0,67804.0,0.07376]
[1730646022564,0.0321,67811.0,67804.0,0.07376]
[1730646023366,0.0321,67811.0,67809.0,0.073754]
[1730646023574,0.3608,67812.0,67804.0,0.22198292]
[1730646023774,0.3608,67812.0,67811.0,0.073752]
[1730646024475,0.033,67820.0,67813.0,0.07375]